[Event "*** Titled Tuesday 3|2 Blitz"]
[Site "Chess.com"]
[Date "2015.03.03"]
[Round "4"]
[White "Spas_Kozhuharov"]
[Black "FabianEnglert"]
[Result "1-0"]
[WhiteElo "2414"]
[BlackElo "2233"]
[TimeControl "180+2"]
[EndTime "11:47:47 PST"]
[Termination "Spas_Kozhuharov won by resignation"]

1. d4 {[%clk 0:03:00]} 1... d5 {[%clk 0:02:57.5]} 2. c4 {[%clk 0:03:00.9]} 2...
e6 {[%clk 0:02:58.8]} 3. Nc3 {[%clk 0:03:01.8]} 3... a6 {[%clk 0:03:00.2]} 4.
cxd5 {[%clk 0:03:00.1]} 4... exd5 {[%clk 0:03:02.1]} 5. Bf4 {[%clk 0:03:00.6]}
5... Nf6 {[%clk 0:03:02.4]} 6. e3 {[%clk 0:03:01.2]} 6... Bd6 {[%clk 0:03:03.3]}
7. Bg3 {[%clk 0:03:01.2]} 7... O-O {[%clk 0:03:01.3]} 8. Bd3 {[%clk 0:03:01.9]}
8... Be6 {[%clk 0:03:00.2]} 9. Nf3 {[%clk 0:03:00.5]} 9... Bxg3 {[%clk
0:02:55.9]} 10. hxg3 {[%clk 0:03:00.8]} 10... h6 {[%clk 0:02:54.9]} 11. Ne5
{[%clk 0:02:53.9]} 11... Nbd7 {[%clk 0:02:55.1]} 12. f4 {[%clk 0:02:53.5]} 12...
Nxe5 {[%clk 0:02:40.9]} 13. dxe5 {[%clk 0:02:53]} 13... Ng4 {[%clk 0:02:28]} 14.
Qe2 {[%clk 0:02:47.9]} 14... d4 {[%clk 0:02:11]} 15. exd4 {[%clk 0:02:38.3]}
15... Qxd4 {[%clk 0:02:12.9]} 16. O-O-O {[%clk 0:02:25.4]} 16... Qe3+ {[%clk
0:02:07]} 17. Qxe3 {[%clk 0:02:24.3]} 17... Nxe3 {[%clk 0:02:08.2]} 18. Rd2
{[%clk 0:02:25.8]} 18... Rad8 {[%clk 0:01:58.4]} 19. Re1 {[%clk 0:02:18.6]}
19... Nc4 {[%clk 0:01:31.9]} 20. Rdd1 {[%clk 0:02:18.7]} 20... b5 {[%clk
0:01:05.8]} 21. f5 {[%clk 0:02:14.3]} 21... Bc8 {[%clk 0:00:55]} 22. Bxc4 {[%clk
0:02:14]} 22... bxc4 {[%clk 0:00:56.9]} 23. Nd5 {[%clk 0:02:01.5]} 23... Bb7
{[%clk 0:00:41.7]} 24. Nxc7 {[%clk 0:01:52.3]} 24... Rxd1+ {[%clk 0:00:37.4]}
25. Rxd1 {[%clk 0:01:52.5]} 25... Bxg2 {[%clk 0:00:35.6]} 26. e6 {[%clk
0:01:51.7]} 26... fxe6 {[%clk 0:00:35.9]} 27. fxe6 {[%clk 0:01:52.5]} 27... Bc6
{[%clk 0:00:18.3]} 28. e7 {[%clk 0:01:52.1]} 28... Rf3 {[%clk 0:00:15.7]} 29.
Rd6 {[%clk 0:01:47.9]} 29... Ba4 {[%clk 0:00:16.1]} 30. Rxa6 {[%clk 0:01:46.6]}
30... Rf1+ {[%clk 0:00:16.8]} 31. Kd2 {[%clk 0:01:46.9]} 31... Rd1+ {[%clk
0:00:18.5]} 32. Ke2 {[%clk 0:01:46.5]} 32... Rd4 {[%clk 0:00:14.9]} 33. Rxa4
{[%clk 0:01:45]} 33... Re4+ {[%clk 0:00:16.3]} 34. Kf3 {[%clk 0:01:44.4]} 34...
Rxe7 {[%clk 0:00:18]} 35. Rxc4 {[%clk 0:01:45.2]} 1-0

[Event "*** Titled Tuesday 3|2 Blitz"]
[Site "Chess.com"]
[Date "2015.03.03"]
[Round "4"]
[White "IMLevAltounian"]
[Black "IMRosen"]
[Result "0-1"]
[WhiteElo "2444"]
[BlackElo "2118"]
[TimeControl "180+2"]
[EndTime "11:48:15 PST"]
[Termination "IMRosen won by resignation"]

1. Nf3 {[%clk 0:03:00]} 1... Nf6 {[%clk 0:02:58.7]} 2. c4 {[%clk 0:03:00.9]}
2... e6 {[%clk 0:02:59.6]} 3. g3 {[%clk 0:03:02.1]} 3... d5 {[%clk 0:03:00.6]}
4. Bg2 {[%clk 0:03:03.2]} 4... dxc4 {[%clk 0:03:02]} 5. Qa4+ {[%clk 0:03:01.2]}
5... c6 {[%clk 0:03:02.6]} 6. Qxc4 {[%clk 0:03:01.4]} 6... b5 {[%clk 0:03:04.2]}
7. Qb3 {[%clk 0:03:00.1]} 7... Bb7 {[%clk 0:03:03.7]} 8. a4 {[%clk 0:03:00.8]}
8... a6 {[%clk 0:03:04.8]} 9. O-O {[%clk 0:02:54.3]} 9... Nbd7 {[%clk
0:03:05.8]} 10. d4 {[%clk 0:02:53.9]} 10... c5 {[%clk 0:02:51.2]} 11. axb5
{[%clk 0:02:50.5]} 11... axb5 {[%clk 0:02:53.1]} 12. Rxa8 {[%clk 0:02:50.6]}
12... Qxa8 {[%clk 0:02:53.2]} 13. Qxb5 {[%clk 0:02:49.2]} 13... cxd4 {[%clk
0:02:45.5]} 14. Bg5 {[%clk 0:02:45.9]} 14... Bc6 {[%clk 0:01:41.5]} 15. Qc4
{[%clk 0:02:43.9]} 15... Bc5 {[%clk 0:01:36.2]} 16. Bxf6 {[%clk 0:02:37.5]}
16... gxf6 {[%clk 0:01:32.8]} 17. Nbd2 {[%clk 0:02:11.4]} 17... Bd5 {[%clk
0:01:30.5]} 18. Qd3 {[%clk 0:02:03.1]} 18... Ke7 {[%clk 0:01:11.2]} 19. Nb3
{[%clk 0:01:58]} 19... Bxb3 {[%clk 0:00:58.8]} 20. Qxb3 {[%clk 0:01:58.5]} 20...
Rb8 {[%clk 0:00:54.8]} 21. Qc2 {[%clk 0:01:54.5]} 21... Qa2 {[%clk 0:00:45.4]}
22. Qxh7 {[%clk 0:01:42.6]} 22... Rxb2 {[%clk 0:00:43.7]} 23. Nh4 {[%clk
0:01:37.3]} 23... Ne5 {[%clk 0:00:33.3]} 24. Bf3 {[%clk 0:01:12.8]} 24... d3
{[%clk 0:00:29.2]} 25. e3 {[%clk 0:00:55.2]} 25... Rxf2 {[%clk 0:00:22.6]} 26.
Rxf2 {[%clk 0:00:53.9]} 26... Bxe3 {[%clk 0:00:19.5]} 0-1

[Event "*** Titled Tuesday 3|2 Blitz"]
[Site "Chess.com"]
[Date "2015.03.03"]
[Round "4"]
[White "GasconJR"]
[Black "AkshatChandra"]
[Result "0-1"]
[WhiteElo "2281"]
[BlackElo "2517"]
[TimeControl "180+2"]
[EndTime "11:48:35 PST"]
[Termination "AkshatChandra won by resignation"]

1. e4 {[%clk 0:03:00]} 1... c5 {[%clk 0:02:59.1]} 2. Nf3 {[%clk 0:02:59.5]} 2...
d6 {[%clk 0:02:57.5]} 3. d4 {[%clk 0:03:00.3]} 3... cxd4 {[%clk 0:02:59.4]} 4.
Nxd4 {[%clk 0:03:01.9]} 4... Nf6 {[%clk 0:03:00.6]} 5. Nc3 {[%clk 0:03:03.2]}
5... Nc6 {[%clk 0:03:02.2]} 6. Bg5 {[%clk 0:03:02.7]} 6... e6 {[%clk 0:03:03.1]}
7. Qd2 {[%clk 0:03:04.2]} 7... Be7 {[%clk 0:03:04.1]} 8. O-O-O {[%clk
0:03:04.9]} 8... O-O {[%clk 0:03:05.8]} 9. Nb3 {[%clk 0:03:03.3]} 9... a6 {[%clk
0:02:56.9]} 10. Bxf6 {[%clk 0:03:02.1]} 10... Bxf6 {[%clk 0:02:54.6]} 11. Qxd6
{[%clk 0:03:02.4]} 11... Bxc3 {[%clk 0:02:46.5]} 12. bxc3 {[%clk 0:02:51.4]}
12... Qf6 {[%clk 0:02:46.1]} 13. Kb2 {[%clk 0:02:16.2]} 13... Qxf2 {[%clk
0:02:43.6]} 14. e5 {[%clk 0:02:01.5]} 14... Qe3 {[%clk 0:02:37.1]} 15. Nd4
{[%clk 0:01:41.2]} 15... Nxe5 {[%clk 0:02:21.2]} 16. Bd3 {[%clk 0:01:19.7]}
16... Nxd3+ {[%clk 0:01:58.6]} 17. Rxd3 {[%clk 0:01:19.3]} 17... Qe4 {[%clk
0:01:35.5]} 18. Rf1 {[%clk 0:01:02.3]} 18... e5 {[%clk 0:01:19.8]} 19. Nf3
{[%clk 0:01:00]} 19... f6 {[%clk 0:00:46.3]} 20. Ng5 {[%clk 0:00:35.7]} 20...
Qc4 {[%clk 0:00:30.6]} 21. Nxh7 {[%clk 0:00:14.7]} 21... Be6 {[%clk 0:00:23.4]}
22. Nxf8 {[%clk 0:00:14.2]} 22... Qxa2+ {[%clk 0:00:24.6]} 23. Kc1 {[%clk
0:00:14.5]} 23... Rxf8 {[%clk 0:00:26.5]} 24. Kd2 {[%clk 0:00:13.5]} 24... Bc4
{[%clk 0:00:23.5]} 25. Rg3 {[%clk 0:00:02]} 25... Bxf1 {[%clk 0:00:23.8]} 26.
Qe7 {[%clk 0:00:03]} 26... Qf7 {[%clk 0:00:23.7]} 0-1

[Event "*** Titled Tuesday 3|2 Blitz"]
[Site "Chess.com"]
[Date "2015.03.03"]
[Round "4"]
[White "ChessPsych0"]
[Black "Hafez_Bakr"]
[Result "1-0"]
[WhiteElo "2030"]
[BlackElo "1833"]
[TimeControl "180+2"]
[EndTime "11:48:36 PST"]
[Termination "ChessPsych0 won by resignation"]

1. d4 {[%clk 0:02:54.1]} 1... Nf6 {[%clk 0:02:58.1]} 2. c4 {[%clk 0:02:55.3]}
2... e6 {[%clk 0:02:59.1]} 3. Nc3 {[%clk 0:02:56.5]} 3... Bb4 {[%clk 0:02:59.1]}
4. e3 {[%clk 0:02:57.9]} 4... O-O {[%clk 0:02:59.6]} 5. Bd3 {[%clk 0:02:58.5]}
5... d5 {[%clk 0:03:00.2]} 6. Nf3 {[%clk 0:02:59.5]} 6... c5 {[%clk 0:02:59.7]}
7. a3 {[%clk 0:03:00.3]} 7... cxd4 {[%clk 0:02:57.8]} 8. axb4 {[%clk 0:02:40.8]}
8... dxc3 {[%clk 0:02:58.3]} 9. bxc3 {[%clk 0:02:41.6]} 9... dxc4 {[%clk
0:02:58.1]} 10. Bxc4 {[%clk 0:02:42.9]} 10... Qxd1+ {[%clk 0:02:58.9]} 11. Kxd1
{[%clk 0:02:44.8]} 11... Bd7 {[%clk 0:02:56.8]} 12. Bb2 {[%clk 0:02:39.2]} 12...
Rd8 {[%clk 0:02:55.3]} 13. Ke2 {[%clk 0:02:39.2]} 13... Bc6 {[%clk 0:02:54.5]}
14. Rhd1 {[%clk 0:02:28.1]} 14... Nbd7 {[%clk 0:02:52.3]} 15. Bd3 {[%clk
0:02:22.8]} 15... a6 {[%clk 0:02:48.3]} 16. c4 {[%clk 0:02:21]} 16... Nf8 {[%clk
0:02:29.8]} 17. Bxf6 {[%clk 0:02:15.5]} 17... gxf6 {[%clk 0:02:30.1]} 18. g3
{[%clk 0:02:11.3]} 18... Ng6 {[%clk 0:02:28.7]} 19. Nd4 {[%clk 0:02:11.9]} 19...
Ne5 {[%clk 0:02:24.2]} 20. Nxc6 {[%clk 0:02:08.1]} 20... Nxc6 {[%clk 0:02:23.7]}
21. Rab1 {[%clk 0:02:03.8]} 21... Ne5 {[%clk 0:02:22.8]} 22. f4 {[%clk
0:01:54.8]} 22... Nxd3 {[%clk 0:02:15.8]} 23. Rxd3 {[%clk 0:01:56.7]} 23... Rxd3
{[%clk 0:02:16.1]} 24. Kxd3 {[%clk 0:01:58.6]} 24... Rd8+ {[%clk 0:02:17.2]} 25.
Kc2 {[%clk 0:01:46.8]} 25... Kf8 {[%clk 0:02:19.1]} 26. c5 {[%clk 0:01:30.7]}
26... Rd5 {[%clk 0:02:15.7]} 27. Rd1 {[%clk 0:01:28.1]} 27... Rxd1 {[%clk
0:02:02.6]} 28. Kxd1 {[%clk 0:01:30]} 28... f5 {[%clk 0:02:01.7]} 29. Kd2 {[%clk
0:01:27.8]} 29... Ke7 {[%clk 0:02:02.5]} 30. Kd3 {[%clk 0:01:29]} 30... f6
{[%clk 0:02:03.3]} 31. e4 {[%clk 0:01:11.8]} 31... fxe4+ {[%clk 0:02:03.4]} 32.
Kxe4 {[%clk 0:01:13.7]} 32... Kd7 {[%clk 0:02:04.2]} 33. g4 {[%clk 0:01:13.3]}
33... Kc6 {[%clk 0:02:03.3]} 34. h4 {[%clk 0:00:46.5]} 34... Kb5 {[%clk
0:01:56]} 35. g5 {[%clk 0:00:47.6]} 35... fxg5 {[%clk 0:01:53.4]} 36. fxg5
{[%clk 0:00:48.4]} 36... Kxb4 {[%clk 0:01:54.5]} 37. h5 {[%clk 0:00:48.9]} 37...
a5 {[%clk 0:01:55.4]} 38. g6 {[%clk 0:00:50.1]} 38... hxg6 {[%clk 0:01:52.1]}
39. hxg6 {[%clk 0:00:43.4]} 39... a4 {[%clk 0:01:54]} 40. g7 {[%clk 0:00:44.7]}
40... a3 {[%clk 0:01:55.9]} 41. g8=Q {[%clk 0:00:46.3]} 41... a2 {[%clk
0:01:53.2]} 42. Qg1 {[%clk 0:00:43.3]} 42... Kb3 {[%clk 0:01:52.1]} 43. Ke5
{[%clk 0:00:26.3]} 43... Kb2 {[%clk 0:01:51.5]} 44. Kxe6 {[%clk 0:00:20.3]}
44... a1=Q {[%clk 0:01:49.4]} 45. Qxa1+ {[%clk 0:00:20.9]} 45... Kxa1 {[%clk
0:01:51.3]} 46. Kd6 {[%clk 0:00:22]} 46... Kb2 {[%clk 0:01:52.8]} 47. Kc7 {[%clk
0:00:22.8]} 47... Kc3 {[%clk 0:01:53.9]} 48. Kxb7 {[%clk 0:00:23.6]} 48... Kd4
{[%clk 0:01:54.3]} 49. c6 {[%clk 0:00:25.5]} 1-0

[Event "*** Titled Tuesday 3|2 Blitz"]
[Site "Chess.com"]
[Date "2015.03.03"]
[Round "4"]
[White "Ar4uha"]
[Black "promen1999"]
[Result "0-1"]
[WhiteElo "2459"]
[BlackElo "2279"]
[TimeControl "180+2"]
[EndTime "11:49:07 PST"]
[Termination "promen1999 won by resignation"]

1. e4 {[%clk 0:02:49.9]} 1... e5 {[%clk 0:02:58.2]} 2. Nf3 {[%clk 0:02:51]} 2...
Nc6 {[%clk 0:02:59.5]} 3. d4 {[%clk 0:02:52.6]} 3... exd4 {[%clk 0:03:00.7]} 4.
Bc4 {[%clk 0:02:54.2]} 4... Nf6 {[%clk 0:03:00.5]} 5. Ng5 {[%clk 0:02:55.5]}
5... d5 {[%clk 0:02:56.8]} 6. exd5 {[%clk 0:02:56.8]} 6... Qe7+ {[%clk
0:02:54.1]} 7. Kf1 {[%clk 0:02:57.9]} 7... Ne5 {[%clk 0:02:51.5]} 8. Qxd4 {[%clk
0:02:59]} 8... Nxc4 {[%clk 0:02:51.2]} 9. Qxc4 {[%clk 0:03:00.6]} 9... Qc5
{[%clk 0:02:45.2]} 10. Qxc5 {[%clk 0:03:02]} 10... Bxc5 {[%clk 0:02:46.3]} 11.
Nc3 {[%clk 0:03:03.6]} 11... Bf5 {[%clk 0:02:46.2]} 12. Bf4 {[%clk 0:03:04.6]}
12... h6 {[%clk 0:02:37]} 13. Re1+ {[%clk 0:02:59.4]} 13... Kf8 {[%clk
0:02:37.9]} 14. Nf3 {[%clk 0:02:56.3]} 14... Bb6 {[%clk 0:02:36.8]} 15. Re2
{[%clk 0:02:35.6]} 15... Rd8 {[%clk 0:02:36.8]} 16. Rd2 {[%clk 0:02:33.7]} 16...
Ba5 {[%clk 0:02:36.3]} 17. h3 {[%clk 0:02:31.6]} 17... Ne4 {[%clk 0:02:31.3]}
18. Nxe4 {[%clk 0:02:25.5]} 18... Bxe4 {[%clk 0:02:31.6]} 19. Rd4 {[%clk
0:02:26.2]} 19... Bxc2 {[%clk 0:02:29.9]} 20. Ke2 {[%clk 0:02:01.6]} 20... Re8+
{[%clk 0:02:04.8]} 21. Be3 {[%clk 0:02:02.7]} 21... f6 {[%clk 0:02:04.2]} 22.
Rc1 {[%clk 0:01:57.4]} 22... Be4 {[%clk 0:02:03.2]} 23. b4 {[%clk 0:01:42.1]}
23... Bb6 {[%clk 0:02:03.3]} 24. Rd2 {[%clk 0:01:43.7]} 24... Bxe3 {[%clk
0:01:49.2]} 25. fxe3 {[%clk 0:01:43.8]} 25... Re7 {[%clk 0:01:50.4]} 26. Nd4
{[%clk 0:00:48.3]} 26... Kf7 {[%clk 0:01:29.8]} 27. Kf2 {[%clk 0:00:35.8]} 27...
Rd8 {[%clk 0:01:21.1]} 28. Ne6 {[%clk 0:00:15.6]} 28... Rxd5 {[%clk 0:01:21.4]}
29. Rxd5 {[%clk 0:00:16.4]} 29... Bxd5 {[%clk 0:01:22.5]} 30. Nxc7 {[%clk
0:00:18.3]} 30... Bxa2 {[%clk 0:01:23.5]} 31. Nb5 {[%clk 0:00:17]} 31... a6
{[%clk 0:01:20.9]} 32. Nd6+ {[%clk 0:00:13.1]} 32... Kg6 {[%clk 0:01:18.5]} 33.
Rc8 {[%clk 0:00:11.2]} 33... Bd5 {[%clk 0:01:17.6]} 34. g4 {[%clk 0:00:10.7]}
34... Rd7 {[%clk 0:01:09.8]} 35. Nf5 {[%clk 0:00:10.3]} 35... Be4 {[%clk
0:01:09.9]} 36. Nd4 {[%clk 0:00:09.5]} 36... h5 {[%clk 0:01:04.7]} 37. Kg3
{[%clk 0:00:10.9]} 37... hxg4 {[%clk 0:01:05.4]} 38. hxg4 {[%clk 0:00:12.5]}
38... Kf7 {[%clk 0:01:01.6]} 39. Kf4 {[%clk 0:00:14]} 39... Bd5 {[%clk
0:01:01.6]} 40. Nf5 {[%clk 0:00:15]} 40... Be6 {[%clk 0:01:00.6]} 41. Nd4 {[%clk
0:00:16.4]} 41... Rxd4+ {[%clk 0:00:55.3]} 42. exd4 {[%clk 0:00:16.5]} 42...
Bxc8 {[%clk 0:00:56.3]} 0-1

[Event "*** Titled Tuesday 3|2 Blitz"]
[Site "Chess.com"]
[Date "2015.03.03"]
[Round "4"]
[White "brauliocuarta"]
[Black "Mazetovic"]
[Result "0-1"]
[WhiteElo "2016"]
[BlackElo "2334"]
[TimeControl "180+2"]
[EndTime "11:49:28 PST"]
[Termination "Mazetovic won by resignation"]

1. d4 {[%clk 0:03:00]} 1... Nf6 {[%clk 0:02:58.2]} 2. c4 {[%clk 0:02:56.2]} 2...
g6 {[%clk 0:02:56.3]} 3. Nc3 {[%clk 0:02:56.1]} 3... Bg7 {[%clk 0:02:55.7]} 4.
e4 {[%clk 0:02:55.1]} 4... d6 {[%clk 0:02:57]} 5. f4 {[%clk 0:02:56.2]} 5... O-O
{[%clk 0:02:56.1]} 6. Nf3 {[%clk 0:02:57.6]} 6... c5 {[%clk 0:02:56.6]} 7. d5
{[%clk 0:02:58.9]} 7... e6 {[%clk 0:02:57.9]} 8. Be2 {[%clk 0:02:59.8]} 8...
exd5 {[%clk 0:02:58.6]} 9. cxd5 {[%clk 0:03:01.5]} 9... Bg4 {[%clk 0:02:59.8]}
10. O-O {[%clk 0:03:00.8]} 10... a6 {[%clk 0:02:58.7]} 11. h3 {[%clk 0:03:01.1]}
11... Bxf3 {[%clk 0:02:59.1]} 12. Bxf3 {[%clk 0:03:02.8]} 12... Nbd7 {[%clk
0:03:00.1]} 13. g4 {[%clk 0:03:03.1]} 13... b5 {[%clk 0:02:56.7]} 14. Ne2 {[%clk
0:02:56.8]} 14... Ne8 {[%clk 0:02:32]} 15. Qc2 {[%clk 0:02:51.8]} 15... Nc7
{[%clk 0:02:29.7]} 16. Be3 {[%clk 0:02:37.5]} 16... Re8 {[%clk 0:02:29.7]} 17.
Rad1 {[%clk 0:02:28.9]} 17... Rc8 {[%clk 0:02:20.4]} 18. e5 {[%clk 0:02:06.4]}
18... dxe5 {[%clk 0:02:18.7]} 19. f5 {[%clk 0:01:52.5]} 19... e4 {[%clk
0:02:17.7]} 20. Bg2 {[%clk 0:01:44.9]} 20... Nf6 {[%clk 0:02:08]} 21. Bg5 {[%clk
0:01:09.8]} 21... Qd6 {[%clk 0:01:23]} 22. Bf4 {[%clk 0:00:27.1]} 22... Qd7
{[%clk 0:01:22.1]} 23. d6 {[%clk 0:00:24.1]} 23... Ncd5 {[%clk 0:01:21.4]} 24.
g5 {[%clk 0:00:25.3]} 24... Nb4 {[%clk 0:00:55.4]} 25. Qb3 {[%clk 0:00:23.1]}
25... Nh5 {[%clk 0:00:55.1]} 26. fxg6 {[%clk 0:00:20.2]} 26... hxg6 {[%clk
0:00:54.7]} 27. Ng3 {[%clk 0:00:20.1]} 27... Nxg3 {[%clk 0:00:36.4]} 28. Bxg3
{[%clk 0:00:18.8]} 28... e3 {[%clk 0:00:34.7]} 29. Rde1 {[%clk 0:00:09.9]} 29...
a5 {[%clk 0:00:32.3]} 30. a3 {[%clk 0:00:10]} 30... c4 {[%clk 0:00:31.8]} 31.
Qd1 {[%clk 0:00:09.8]} 31... Nd3 {[%clk 0:00:32.4]} 32. Re2 {[%clk 0:00:09.2]}
32... Nxb2 {[%clk 0:00:30.5]} 33. Rxb2 {[%clk 0:00:08.8]} 33... Bxb2 {[%clk
0:00:28.9]} 34. Qd5 {[%clk 0:00:09.9]} 34... e2 {[%clk 0:00:28.2]} 35. Re1
{[%clk 0:00:09.5]} 35... Bg7 {[%clk 0:00:27.8]} 36. Bf3 {[%clk 0:00:08.1]} 36...
c3 {[%clk 0:00:28.7]} 37. Rxe2 {[%clk 0:00:08]} 37... Rxe2 {[%clk 0:00:28.3]}
38. Bxe2 {[%clk 0:00:09.9]} 38... c2 {[%clk 0:00:29.7]} 39. Bxb5 {[%clk
0:00:10.9]} 39... c1=Q+ {[%clk 0:00:29.1]} 40. Kg2 {[%clk 0:00:12.4]} 40... Rc2+
{[%clk 0:00:29.4]} 0-1

[Event "*** Titled Tuesday 3|2 Blitz"]
[Site "Chess.com"]
[Date "2015.03.03"]
[Round "4"]
[White "biostatistician"]
[Black "wonderfultime"]
[Result "0-1"]
[WhiteElo "2299"]
[BlackElo "2543"]
[TimeControl "180+2"]
[EndTime "11:49:45 PST"]
[Termination "wonderfultime won by checkmate"]

1. d4 {[%clk 0:03:00]} 1... d5 {[%clk 0:02:58.8]} 2. Nf3 {[%clk 0:03:00.7]} 2...
Nf6 {[%clk 0:02:59.4]} 3. c4 {[%clk 0:03:02.1]} 3... c6 {[%clk 0:03:01]} 4. cxd5
{[%clk 0:03:03]} 4... cxd5 {[%clk 0:03:02.1]} 5. Nc3 {[%clk 0:03:04.5]} 5... Nc6
{[%clk 0:03:03.7]} 6. Bf4 {[%clk 0:03:05.6]} 6... Bf5 {[%clk 0:03:05.3]} 7. e3
{[%clk 0:03:06.7]} 7... e6 {[%clk 0:03:06.9]} 8. Qb3 {[%clk 0:03:07.8]} 8... Bb4
{[%clk 0:03:08.2]} 9. Bb5 {[%clk 0:03:08.4]} 9... O-O {[%clk 0:03:09.1]} 10. O-O
{[%clk 0:03:08.9]} 10... Bxc3 {[%clk 0:03:06.5]} 11. Qxc3 {[%clk 0:03:10.8]}
11... Rc8 {[%clk 0:03:04.6]} 12. Qa3 {[%clk 0:03:11.5]} 12... Qb6 {[%clk
0:03:04.8]} 13. Be2 {[%clk 0:02:42.8]} 13... Nb4 {[%clk 0:02:40.4]} 14. Rac1
{[%clk 0:02:42.7]} 14... h6 {[%clk 0:02:32.3]} 15. b3 {[%clk 0:02:35.9]} 15...
Bd3 {[%clk 0:02:26.5]} 16. Rxc8 {[%clk 0:02:16.7]} 16... Rxc8 {[%clk 0:02:27.1]}
17. Bxd3 {[%clk 0:02:17.1]} 17... Nxd3 {[%clk 0:02:29]} 18. Be5 {[%clk
0:02:18.6]} 18... Ne4 {[%clk 0:02:15.6]} 19. Bg3 {[%clk 0:02:13.1]} 19... a5
{[%clk 0:01:32]} 20. Rd1 {[%clk 0:02:07.1]} 20... Qb4 {[%clk 0:01:04.9]} 21.
Qxb4 {[%clk 0:01:54.4]} 21... Nxb4 {[%clk 0:00:48.2]} 22. a3 {[%clk 0:01:53.4]}
22... Nc2 {[%clk 0:00:48.1]} 23. Rc1 {[%clk 0:01:52.5]} 23... Rc3 {[%clk
0:00:49.3]} 24. b4 {[%clk 0:01:07.2]} 24... a4 {[%clk 0:00:49.2]} 25. Ne5 {[%clk
0:00:51.7]} 25... Nxa3 {[%clk 0:00:37.5]} 26. Ra1 {[%clk 0:00:49.3]} 26... Rb3
{[%clk 0:00:33.1]} 27. Nd7 {[%clk 0:00:30.2]} 27... Rb1+ {[%clk 0:00:33.4]} 28.
Rxb1 {[%clk 0:00:30.7]} 28... Nxb1 {[%clk 0:00:35.3]} 29. Nc5 {[%clk 0:00:27.4]}
29... Nxc5 {[%clk 0:00:36.3]} 30. dxc5 {[%clk 0:00:28.9]} 30... f6 {[%clk
0:00:35.8]} 31. b5 {[%clk 0:00:25.6]} 31... a3 {[%clk 0:00:22.7]} 32. c6 {[%clk
0:00:26]} 32... bxc6 {[%clk 0:00:21]} 33. bxc6 {[%clk 0:00:27]} 33... a2 {[%clk
0:00:22.4]} 34. c7 {[%clk 0:00:27.8]} 34... a1=Q {[%clk 0:00:23.8]} 35. c8=Q+
{[%clk 0:00:29.1]} 35... Kh7 {[%clk 0:00:25.7]} 36. Qc2+ {[%clk 0:00:30]} 36...
f5 {[%clk 0:00:27.1]} 37. Qc1 {[%clk 0:00:31.1]} 37... Qa2 {[%clk 0:00:26.6]}
38. h4 {[%clk 0:00:32.2]} 38... Nd2 {[%clk 0:00:25.7]} 39. Qc8 {[%clk
0:00:31.2]} 39... Qa1+ {[%clk 0:00:23.7]} 40. Kh2 {[%clk 0:00:31.9]} 40... Nf1+
{[%clk 0:00:25.4]} 41. Kh3 {[%clk 0:00:33.2]} 41... Qd1 {[%clk 0:00:21.7]} 42.
f3 {[%clk 0:00:25.9]} 42... Nxe3 {[%clk 0:00:23.1]} 43. Qxe6 {[%clk 0:00:24.5]}
43... Qh1+ {[%clk 0:00:24]} 44. Bh2 {[%clk 0:00:22.6]} 44... Qxg2# {[%clk
0:00:25.9]} 0-1

[Event "*** Titled Tuesday 3|2 Blitz"]
[Site "Chess.com"]
[Date "2015.03.03"]
[Round "4"]
[White "Irochka83"]
[Black "jcibarra"]
[Result "0-1"]
[WhiteElo "2287"]
[BlackElo "2541"]
[TimeControl "180+2"]
[EndTime "11:50:15 PST"]
[Termination "jcibarra won by resignation"]

1. Nf3 {[%clk 0:02:50.5]} 1... Nf6 {[%clk 0:02:59.1]} 2. c4 {[%clk 0:02:50.2]}
2... d6 {[%clk 0:03:00.3]} 3. g3 {[%clk 0:02:48.3]} 3... g6 {[%clk 0:03:01.5]}
4. Bg2 {[%clk 0:02:48.5]} 4... Bg7 {[%clk 0:03:02.9]} 5. Nc3 {[%clk 0:02:49.8]}
5... O-O {[%clk 0:03:03.6]} 6. O-O {[%clk 0:02:51]} 6... Nc6 {[%clk 0:03:04.7]}
7. d3 {[%clk 0:02:52.3]} 7... e5 {[%clk 0:03:04.6]} 8. Bg5 {[%clk 0:02:52.1]}
8... h6 {[%clk 0:03:05.5]} 9. Bxf6 {[%clk 0:02:52.9]} 9... Bxf6 {[%clk
0:03:07.4]} 10. Rb1 {[%clk 0:02:49.9]} 10... a5 {[%clk 0:03:08.2]} 11. a3 {[%clk
0:02:50.6]} 11... Bg7 {[%clk 0:03:09.4]} 12. b4 {[%clk 0:02:51.6]} 12... axb4
{[%clk 0:03:10.1]} 13. axb4 {[%clk 0:02:53.5]} 13... Re8 {[%clk 0:03:05.7]} 14.
b5 {[%clk 0:02:49.7]} 14... Ne7 {[%clk 0:03:06.5]} 15. Qc2 {[%clk 0:02:39.6]}
15... c6 {[%clk 0:03:06.4]} 16. Nd2 {[%clk 0:02:38.4]} 16... Be6 {[%clk
0:03:04.2]} 17. bxc6 {[%clk 0:02:29.4]} 17... bxc6 {[%clk 0:03:05.3]} 18. Rb7
{[%clk 0:02:29.4]} 18... d5 {[%clk 0:03:06.2]} 19. Rfb1 {[%clk 0:02:23.8]} 19...
h5 {[%clk 0:02:56.7]} 20. Na4 {[%clk 0:02:13.5]} 20... Qa5 {[%clk 0:02:48.8]}
21. Nb6 {[%clk 0:01:45.7]} 21... Rab8 {[%clk 0:02:47.7]} 22. Nb3 {[%clk
0:01:46.8]} 22... Qb4 {[%clk 0:02:32.3]} 23. Rxb8 {[%clk 0:01:32.6]} 23... Rxb8
{[%clk 0:02:31.8]} 24. Nd4 {[%clk 0:01:33.8]} 24... Qa5 {[%clk 0:02:11.4]} 25.
Nxe6 {[%clk 0:01:09.8]} 25... Rxb6 {[%clk 0:02:06.5]} 26. Rxb6 {[%clk
0:01:05.3]} 26... Qxb6 {[%clk 0:02:06.8]} 27. Ng5 {[%clk 0:01:05.8]} 27... Bf6
{[%clk 0:02:01.9]} 28. Nf3 {[%clk 0:01:04.9]} 28... Qb4 {[%clk 0:01:52.7]} 29.
h4 {[%clk 0:01:00.8]} 29... e4 {[%clk 0:01:50.4]} 30. Nd2 {[%clk 0:00:36]} 30...
Nf5 {[%clk 0:01:43.2]} 31. dxe4 {[%clk 0:00:31.4]} 31... Nd4 {[%clk 0:01:29.5]}
32. Qd3 {[%clk 0:00:32.4]} 32... dxc4 {[%clk 0:01:25.9]} 33. Nxc4 {[%clk
0:00:29.4]} 33... Qe1+ {[%clk 0:01:23.6]} 34. Bf1 {[%clk 0:00:30.5]} 34... Ne6
{[%clk 0:01:18.9]} 35. e5 {[%clk 0:00:28.8]} 35... Be7 {[%clk 0:01:18.6]} 36.
Nd6 {[%clk 0:00:25.4]} 36... Qa1 {[%clk 0:01:18.1]} 37. Qf3 {[%clk 0:00:24.1]}
37... Nd8 {[%clk 0:01:06]} 38. Qe4 {[%clk 0:00:17.3]} 38... Qd1 {[%clk
0:01:03.5]} 39. Nc4 {[%clk 0:00:14.3]} 39... Ne6 {[%clk 0:01:01.5]} 40. Qxc6
{[%clk 0:00:08.9]} 40... Kg7 {[%clk 0:00:46.2]} 41. Nd6 {[%clk 0:00:09]} 41...
Qd4 {[%clk 0:00:40.9]} 42. Qe4 {[%clk 0:00:03.4]} 42... Qa1 {[%clk 0:00:40.7]}
43. Qd3 {[%clk 0:00:02]} 43... Qxe5 {[%clk 0:00:39.5]} 44. Nc4 {[%clk
0:00:02.9]} 44... Qa1 {[%clk 0:00:39.3]} 45. Kg2 {[%clk 0:00:03.7]} 45... Bf6
{[%clk 0:00:39.9]} 46. e3 {[%clk 0:00:04.9]} 46... Qa8+ {[%clk 0:00:39.9]} 47.
Kg1 {[%clk 0:00:05.5]} 47... Nc5 {[%clk 0:00:40.6]} 48. Qd6 {[%clk 0:00:05.6]}
48... Ne4 {[%clk 0:00:40.7]} 49. Bg2 {[%clk 0:00:05.2]} 49... Qa1+ {[%clk
0:00:40]} 50. Bf1 {[%clk 0:00:06.5]} 50... Nxd6 {[%clk 0:00:41.2]} 51. Nxd6
{[%clk 0:00:06.9]} 0-1